Workbook

Sheet Sheet1
N1: Water Properties
A2: Male or female? | B2: Height (input from user) | C2: Length of body | D2: Temperature input from user | E2: wetsuit thickness | F2: Tsurf (body temperature) | G2: SA (90% of body, for female use 1.6) | H2: K(neoprene) | I2: waist size | J2: Diameter of body (taken at avg of 32" waist size) | K2: Velocity (const) | L2: Water Temp. (Farenheight) | M2: T_inf (Kelvin) | N2: Re | O2: nu | P2: mu | Q2: 1/rho | R2: Pr | S2: k | T2: Nu_d (churchill eq) | U2: hbar | V2: wet suit resistance | W2: q (no wetsuit) | X2: q (w/ wetsuit) | Y2: Total heat conserved in Watts
C3: 0 | F3: =(5/9)*(98.6+459.67) -> 310.15 | G3: 1.44 | H3: 0.054 | J3: =$I$3*2.54/100 -> 0 | K3: =0.03 -> 0.03 | L3: 40 | M3: =(5/9)*($L3+459.67) -> 277.5944444 | N3: =$K$3*$J$3/$O3 -> 0 | O3: =$P3*$Q3 -> 1.533e-06 | P3: 0.001533 | Q3: 0.001 | R3: 11.2 | S3: 0.5781 | T3: =0.3+(0.62*$N3^0.5*$R3^(1/3)*(1+($N3/282000)^(5/8))^(4/5)/(1+(0.4/$R3)^(2/3))^0.25) -> 0.3 | U3: =$T3*$S3/$J$3 ->  | V3: =LN((($J$3*0.5)+$E$3)/(($J$3*0.5)))/(2*PI()*$H$3*$C$3)+(1/($U3*$G$3)) ->  | W3: =($F$3-$M3)*$G$3*$U3 ->  | X3: =($F$3-$M3)/$V3 ->  | Y3: =W3-X3 -> 
L4: 41 | M4: 278.15 | N4: =$K$3*$J$3/$O4 -> 0 | O4: =$P4*$Q4 -> 1.507e-06 | P4: 0.001507 | Q4: 0.001 | R4: 10.99 | S4: 0.579 | T4: =0.3+(0.62*$N4^0.5*$R4^(1/3)*(1+($N4/282000)^(5/8))^(4/5)/(1+(0.4/$R4)^(2/3))^0.25) -> 0.3 | U4: =$T4*$S4/$J$3 ->  | V4: =LN((($J$3*0.5)+$E$3)/(($J$3*0.5)))/(2*PI()*$H$3*$C$3)+(1/($U4*$G$3)) ->  | W4: =($F$3-$M4)*$G$3*$U4 ->  | X4: =($F$3-$M4)/$V4 ->  | Y4: =W4-X4 -> 
L5: 42 | M5: 278.7055556 | N5: 0 | O5: 1.482e-06 | P5: 0.001482 | Q5: 0.001 | R5: 10.77 | S5: 0.5799 | T5: 0.3
L6: 43 | M6: 279.2611111 | N6: 0 | O6: 1.456e-06 | P6: 0.001456 | Q6: 0.001 | R6: 10.55 | S6: 0.5808 | T6: 0.3
L7: 44 | M7: 279.8166667 | N7: 0 | O7: 1.43e-06 | P7: 0.00143 | Q7: 0.001 | R7: 10.33 | S7: 0.5817 | T7: 0.3
L8: 45 | M8: 280.3722222 | N8: 0 | O8: 1.407e-06 | P8: 0.001407 | Q8: 0.001 | R8: 10.15 | S8: 0.5826 | T8: 0.3
L9: 46 | M9: 280.9277778 | N9: 0 | O9: 1.385e-06 | P9: 0.001385 | Q9: 0.001 | R9: 9.99 | S9: 0.5835 | T9: 0.3
L10: 47 | M10: 281.4833333 | N10: 0 | O10: 1.364e-06 | P10: 0.001364 | Q10: 0.001 | R10: 9.83 | S10: 0.5844 | T10: 0.3
L11: 48 | M11: 282.0388889 | N11: 0 | O11: 1.342e-06 | P11: 0.001342 | Q11: 0.001 | R11: 9.67 | S11: 0.5853 | T11: 0.3
L12: 49 | M12: 282.5944444 | N12: 0 | O12: 1.32e-06 | P12: 0.00132 | Q12: 0.001 | R12: 9.51 | S12: 0.5862 | T12: 0.3
L13: 50 | M13: 283.15 | N13: 0 | O13: 1.298e-06 | P13: 0.001298 | Q13: 0.001 | R13: 9.35 | S13: 0.587 | T13: 0.3
L14: 51 | M14: 283.7055556 | N14: 0 | O14: 1.276e-06 | P14: 0.001276 | Q14: 0.001 | R14: 9.19 | S14: 0.5879 | T14: 0.3
L15: 52 | M15: 284.2611111 | N15: 0 | O15: 1.254e-06 | P15: 0.001254 | Q15: 0.001 | R15: 9.02 | S15: 0.5888 | T15: 0.3
L16: 53 | M16: 284.8166667 | N16: 0 | O16: 1.232e-06 | P16: 0.001232 | Q16: 0.001 | R16: 8.86 | S16: 0.5897 | T16: 0.3
L17: 54 | M17: 285.3722222 | N17: 0 | O17: 1.214e-06 | P17: 0.001214 | Q17: 0.001 | R17: 8.72 | S17: 0.5906 | T17: 0.3
L18: 55 | M18: 285.9277778 | N18: 0 | O18: 1.198e-06 | P18: 0.001198 | Q18: 0.001 | R18: 8.58 | S18: 0.5915 | T18: 0.3
L19: 56 | M19: 286.4833333 | N19: 0 | O19: 1.182e-06 | P19: 0.001182 | Q19: 0.001 | R19: 8.44 | S19: 0.5924 | T19: 0.3
L20: 57 | M20: 287.0388889 | N20: 0 | O20: 1.166e-06 | P20: 0.001166 | Q20: 0.001 | R20: 8.3 | S20: 0.5933 | T20: 0.3
L21: 58 | M21: 287.5944444 | N21: 0 | O21: 1.15115e-06 | P21: 0.00115 | Q21: 0.001001 | R21: 8.16 | S21: 0.5942 | T21: 0.3
L22: 59 | M22: 288.15 | N22: 0 | O22: 1.135134e-06 | P22: 0.001134 | Q22: 0.001001 | R22: 8.02 | S22: 0.595 | T22: 0.3
L23: 60 | M23: 288.7055556 | N23: 0 | O23: 1.119118e-06 | P23: 0.001118 | Q23: 0.001001 | R23: 7.88 | S23: 0.5959 | T23: 0.3
L24: 61 | M24: 289.2611111 | N24: 0 | O24: 1.102101e-06 | P24: 0.001101 | Q24: 0.001001 | R24: 7.74 | S24: 0.5968 | T24: 0.3
L25: 62 | M25: 289.8166667 | N25: 0 | O25: 1.086085e-06 | P25: 0.001085 | Q25: 0.001001 | R25: 7.61 | S25: 0.5977 | T25: 0.3
L26: 63 | M26: 290.3722222 | N26: 0 | O26: 1.072071e-06 | P26: 0.001071 | Q26: 0.001001 | R26: 7.49 | S26: 0.5986 | T26: 0.3
L27: 64 | M27: 290.9277778 | N27: 0 | O27: 1.059058e-06 | P27: 0.001058 | Q27: 0.001001 | R27: 7.39 | S27: 0.5995 | T27: 0.3
L28: 65 | M28: 291.4833333 | N28: 0 | O28: 1.045044e-06 | P28: 0.001044 | Q28: 0.001001 | R28: 7.28 | S28: 0.6004 | T28: 0.3
E47: PROBLEM 6.56 (cylinder) w/ forced convection
E48: Properties | H48: Solve for:
E49: mu | F49: 2.227e-05
E50: nu | F50: 2.454e-05
E51: Pr | F51: 0.693
E52: beta | F52: 0.00261
E53: k | F53: 0.0325 | H53: hbar | J53: =J59*F53/F60 -> 35.67646959
E54: alpha | F54: 3.54e-05
E55: rho | F55: 0.9132
H57: velocity (m/s) | J57: 8
H58: Re_external-->turbulent | J58: =J57*F60/F50 -> 29013.85493
E59: Given | H59: Nu_D (CYLINDER using Churchill eq) | J59: =0.3+((0.62*J58^0.5*F51^(1/3))/(1+(0.4/F51)^(2/3))^0.25*(1+(J58/282000)^(5/8))^(4/5)) -> 97.6986398
E60: diameter | F60: 0.089 | H60: qconvection (watts) | J60: =J53*F64*(F62-F63) -> 1795.536575
E61: characteristic length | H61: qradiation (watts) | J61: =F66*0.0000000567*((F62+273)^4-(F63+273)^4)*F64 -> 541.3576649
E62: Tsurf | F62: 200 | H62: qtotal (watts)/meter (NO INSULATION) | J62: =SUM(J60:J61) -> 2336.89424
E63: Tinf | F63: 20
E64: surface area | F64: =PI()*F60 -> 0.2796017462
E65: perimeter | F65: =PI()*F60 -> 0.2796017462
E66: emissivity | F66: 0.8
E67: Tf (in Kelvin) | F67: =273.15+AVERAGE(F62:F63) -> 383.15
E68: gravity | F68: =9.81 -> 9.81
C106: =#REF!*#REF!/((#REF!*#REF!)^4*(#REF!^(-7/5)+#REF!^(-7/5))^5) -> 

Sheet Sheet2

Sheet Sheet3
